Workbook

Sheet 2015
B1: 48. ročník Předvánočního závodu žákyň ve sportovní gymnastice města Pardubic | P1: Počet rozhod. (2,3): | Q1: Počet
B2: ročník 2015 | P2: Kladina | Q2: 3
B3: 10. prosince 2022 | P3: Akrobacie | Q3: 3
B4: Pořadatel: T.J. Sokol Pardubice I
P5: Řadit podle | Q5: Výsled. | R5: Start.č. | S5: Jednoty
P6: Klávesová zkratka | Q6: Ctrl+q | R6: Ctrl+w | S6: Ctrl+e
B7: Pořadí | C7: Jméno | D7: Ročník | E7: Oddíl | F7: Kladina | H7: Akrobacie | J7: Celkem
A8: St.č. | F8: A | G8: B | H8: A | I8: B | L8: Sled | M8: Nář. | Q8: Panel | R8: Klad. 1 | S8: Klad. 2 | T8: Klad. 3 | W8: Panel | X8: Akr. 1 | Y8: Akr. 2 | Z8: Akr. 3
A9: 10 | B9: =_xlfn.RANK.EQ(J9,$J$9:$J$29) -> 1 | C9: Nevečeřalová Tamara | D9: 2015 | E9: TJ Loko Pardubice | F9: =Q9 -> 2.8 | G9: =IF($Q$2=2,10-SUM(R9:S9)/2,IF($Q$2=3,10-SUM(R9:T9)/3,"Rozh!!!")) -> 8.733333333 | H9: =W9 -> 2.5 | I9: =IF($Q$3=2,10-SUM(X9:Z9)/2,IF($Q$3=3,10-SUM(X9:Z9)/3,"Rozh!!!")) -> 8.9 | J9: =SUM(F9:I9) -> 22.93333333 | O9: 10 | P9: =C9 -> Nevečeřalová Tamara | Q9: 2.8 | R9: 1.2 | S9: 1.3 | T9: 1.3 | U9: 10 | V9: =C9 -> Nevečeřalová Tamara | W9: 2.5 | X9: 1.4 | Y9: 1 | Z9: 0.9
A10: 7 | B10: 2 | C10: Jirková Amálie | D10: 2015 | E10: TJ Sokol Hradec Králové | F10: 2.8 | G10: 8.466666667 | H10: 2.7 | I10: 8.366666667 | J10: 22.33333333 | O10: 7 | P10: Jirková Amálie | Q10: 2.8 | R10: 1.3 | S10: 1.5 | T10: 1.8 | U10: 9 | V10: Jirková Amálie | W10: 2.7 | X10: 1.8 | Y10: 1.5 | Z10: 1.6
A11: 11 | B11: 3 | C11: Nadrchalová Soňa | D11: 2015 | E11: TJ Loko Pardubice | F11: 2.7 | G11: 7.533333333 | H11: 2.6 | I11: 8.366666667 | J11: 21.2 | O11: 11 | P11: Nadrchalová Soňa | Q11: 2.7 | R11: 2.6 | S11: 2.5 | T11: 2.3 | U11: 10 | V11: Nadrchalová Soňa | W11: 2.6 | X11: 1.6 | Y11: 1.7 | Z11: 1.6
A12: 9 | B12: 4 | C12: Šuvarová Rozárka | D12: 2015 | E12: TJ Loko Pardubice | F12: 2.8 | G12: 7.433333333 | H12: 2.6 | I12: 8.333333333 | J12: 21.16666667 | O12: 9 | P12: Šuvarová Rozárka | Q12: 2.8 | R12: 2.4 | S12: 2.4 | T12: 2.9 | U12: 10 | V12: Šuvarová Rozárka | W12: 2.6 | X12: 1.5 | Y12: 1.8 | Z12: 1.7
A13: 1 | B13: 5 | C13: Venigerová Adéla | D13: 2015 | E13: TJ Sokol Pardubice I | F13: 2.7 | G13: 7.1 | H13: 2.6 | I13: 8.3 | J13: 20.7 | O13: 1 | P13: Venigerová Adéla | Q13: 2.7 | R13: 2.8 | S13: 3 | T13: 2.9 | U13: 10 | V13: Venigerová Adéla | W13: 2.6 | X13: 1.7 | Y13: 1.6 | Z13: 1.8
A14: 8 | B14: 6 | C14: Stránská Stella Adina | D14: 2015 | E14: TJ Sokol Hradec Králové | F14: 2.7 | G14: 6.766666667 | H14: 2.7 | I14: 7.8 | J14: 19.96666667 | O14: 8 | P14: Stránská Stella Adina | Q14: 2.7 | R14: 3.2 | S14: 3.5 | T14: 3 | U14: 10 | V14: Stránská Stella Adina | W14: 2.7 | X14: 2.4 | Y14: 1.9 | Z14: 2.3
A15: 3 | B15: 7 | C15: Fufalová Julie | D15: 2015 | E15: TJ Sokol Pardubice I | F15: 2.6 | G15: 7.2 | H15: 2.6 | I15: 7.266666667 | J15: 19.66666667 | O15: 3 | P15: Fufalová Julie | Q15: 2.6 | R15: 3.1 | S15: 2.8 | T15: 2.5 | U15: 3 | V15: Fufalová Julie | W15: 2.6 | X15: 2.9 | Y15: 2.7 | Z15: 2.6
A16: 4 | B16: 8 | C16: Bartošová Natálie | D16: 2015 | E16: TJ Spartak Vrchlabí | F16: 2 | G16: 2.633333333 | H16: 2.6 | I16: 6.666666667 | J16: 13.9 | O16: 4 | P16: Bartošová Natálie | Q16: 2 | R16: 7.5 | S16: 7.5 | T16: 7.1 | U16: 10 | V16: Bartošová Natálie | W16: 2.6 | X16: 3.6 | Y16: 3.4 | Z16: 3
C31: Závod je pořádán za podpory Statutárního města Pardubice

Sheet 2014
B1: 48. ročník Předvánočního závodu žákyň ve sportovní gymnastice města Pardubic | P1: Počet rozhod. (2,3): | Q1: Počet
B2: ročník 2014 | P2: Kladina | Q2: 3
B3: 10. prosince 2022 | P3: Akrobacie | Q3: 3
B5: Pořadatel: T.J. Sokol Pardubice I | P5: Řadit podle | Q5: Výsled. | R5: Start.č. | S5: Jednoty
P6: Klávesová zkratka | Q6: Ctrl+q | R6: Ctrl+w | S6: Ctrl+e
B7: Pořadí | C7: Jméno | D7: Ročník | E7: Oddíl | F7: Kladina | H7: Akrobacie | J7: Celkem
A8: p.č. | F8: A | G8: B | H8: A | I8: B | L8: Sled | M8: Nář. | Q8: Panel | R8: Klad. 1 | S8: Klad. 2 | T8: Klad. 3 | W8: Panel | X8: Akr. 1 | Y8: Akr. 2 | Z8: Akr. 3
A9: 10 | B9: =_xlfn.RANK.EQ(J9,$J$9:$J$21) -> 1 | C9: Bezdíčková Beata | D9: 2014 | E9: TJ Loko Pardubice | F9: =Q9 -> 2.8 | G9: =IF($Q$2=2,10-SUM(R9:S9)/2,IF($Q$2=3,10-SUM(R9:T9)/3,"Rozh!!!")) -> 8.666666667 | H9: =W9 -> 2.6 | I9: =IF($Q$3=2,10-SUM(X9:Z9)/2,IF($Q$3=3,10-SUM(X9:Z9)/3,"Rozh!!!")) -> 9.033333333 | J9: =SUM(F9:I9) -> 23.1 | O9: =A9 -> 10 | P9: =C9 -> Bezdíčková Beata | Q9: 2.8 | R9: 1.4 | S9: 1.2 | T9: 1.4 | W9: 2.6 | X9: 0.9 | Y9: 1 | Z9: 1
A10: 4 | B10: 2 | C10: Bělochová Elen | D10: 2014 | E10: TJ Sokol Chrudim | F10: 3 | G10: 7.633333333 | H10: 2.8 | I10: 8.466666667 | J10: 21.9 | O10: 4 | P10: Bělochová Elen | Q10: 3 | R10: 2.7 | S10: 2.5 | T10: 1.9 | W10: 2.8 | X10: 1.7 | Y10: 1.5 | Z10: 1.4
A11: 2 | B11: 3 | C11: Lomičová Barbora Anna | D11: 2014 | E11: TJ Sokol Chrudim | F11: 3 | G11: 7.466666667 | H11: 2.7 | I11: 8.033333333 | J11: 21.2 | O11: 2 | P11: Lomičová Barbora Anna | Q11: 3 | R11: 2.4 | S11: 2.8 | T11: 2.4 | W11: 2.7 | X11: 2 | Y11: 1.9 | Z11: 2
A12: 6 | B12: 4 | C12: Skokanová Alice | D12: 2014 | E12: TJ Loko Pardubice | F12: 2.7 | G12: 6.966666667 | H12: 2.6 | I12: 8.5 | J12: 20.76666667 | O12: 6 | P12: Skokanová Alice | Q12: 2.7 | R12: 2.9 | S12: 2.9 | T12: 3.3 | W12: 2.6 | X12: 1.5 | Y12: 1.4 | Z12: 1.6
A13: 7 | B13: 5 | C13: Štěpánková Emily | D13: 2014 | E13: TJ Loko Pardubice | F13: 2.6 | G13: 7.033333333 | H13: 2.6 | I13: 8.466666667 | J13: 20.7 | O13: 7 | P13: Štěpánková Emily | Q13: 2.6 | R13: 3 | S13: 3.1 | T13: 2.8 | W13: 2.6 | X13: 1.5 | Y13: 1.6 | Z13: 1.5
A14: 5 | B14: 6 | C14: Holá Klára | D14: 2014 | E14: TJ Sokol Hradec Králové | F14: 2.8 | G14: 7.8 | H14: 2.7 | I14: 7.366666667 | J14: 20.66666667 | O14: 5 | P14: Holá Klára | Q14: 2.8 | R14: 2.2 | S14: 2.4 | T14: 2 | W14: 2.7 | X14: 2.9 | Y14: 2.5 | Z14: 2.5
A15: 9 | B15: 7 | C15: Saifrtová Viktorie | D15: 2014 | E15: TJ Sokol Hradec Králové | F15: 2.7 | G15: 7.1 | H15: 2.7 | I15: 8.1 | J15: 20.6 | O15: 9 | P15: Saifrtová Viktorie | Q15: 2.7 | R15: 2.7 | S15: 2.8 | T15: 3.2 | W15: 2.7 | X15: 2 | Y15: 1.7 | Z15: 2
A16: 14 | B16: 8 | C16: Marková Alena | D16: 2014 | E16: TJ Sokol Vysoké Mýto | F16: 2.9 | G16: 6.866666667 | H16: 2.6 | I16: 7.466666667 | J16: 19.83333333 | O16: 14 | P16: Marková Alena | Q16: 2.9 | R16: 3 | S16: 3 | T16: 3.4 | W16: 2.6 | X16: 2.8 | Y16: 2.5 | Z16: 2.3
A17: 15 | B17: 9 | C17: Štorková Barbora | D17: 2014 | E17: TJ Sokol Vysoké Mýto | F17: 2.7 | G17: 5.966666667 | H17: 2.6 | I17: 6.866666667 | J17: 18.13333333 | O17: 15 | P17: Štorková Barbora | Q17: 2.7 | R17: 4 | S17: 3.9 | T17: 4.2 | W17: 2.6 | X17: 3.6 | Y17: 3 | Z17: 2.8
A18: 3 | B18: 10 | C18: Řeháková Emma | D18: 2014 | E18: Spartak Vrchlabí | F18: 2.1 | G18: 5.433333333 | H18: 2.6 | I18: 6.266666667 | J18: 16.4 | O18: 3 | P18: Řeháková Emma | Q18: 2.1 | R18: 4.5 | S18: 4.5 | T18: 4.7 | W18: 2.6 | X18: 3.6 | Y18: 3.9 | Z18: 3.7
A19: 1 | B19: 11 | C19: Zelinková Jenifer | D19: 2014 | E19: Spartak Vrchlabí | F19: 2 | G19: 2.766666667 | H19: 2.5 | I19: 5.166666667 | J19: 12.43333333 | O19: 1 | P19: Zelinková Jenifer | Q19: 2 | R19: 7.3 | S19: 7.3 | T19: 7.1 | W19: 2.5 | X19: 4.7 | Y19: 4.8 | Z19: 5
C23: Závod je pořádán za podpory Statutárního města Pardubice

Sheet 2016
B1: 48. ročník Předvánočního závodu žákyň ve sportovní gymnastice města Pardubic | P1: Počet rozhod. (2,3): | Q1: Počet
B2: ročník 2016 | P2: Kladina | Q2: 3
B3: 10. prosince 2022 | P3: Akrobacie | Q3: 3
A4: Pořadatel: T.J. Sokol Pardubice I
P5: Řadit podle | Q5: Výsled. | R5: Start.č. | S5: Jednoty
P6: Klávesová zkratka | Q6: Ctrl+q | R6: Ctrl+w | S6: Ctrl+e
B7: Pořadí | C7: Jméno | D7: Ročník | E7: Oddíl | F7: Kladina | H7: Akrobacie | J7: Celkem
A8: St.č. | F8: A | G8: B | H8: A | I8: B | L8: Sled | M8: Nář. | Q8: Panel | R8: Klad. 1 | S8: Klad. 2 | T8: Klad. 3 | W8: Panel | X8: Akr. 1 | Y8: Akr. 2 | Z8: Akr. 3
A9: 8 | B9: =_xlfn.RANK.EQ(J9,$J$9:$J$24) -> 1 | C9: Adamírová Karolína | D9: 2016 | E9: TJ Sokol Pardubice I | F9: =Q9 -> 1.5 | G9: =IF($Q$2=2,10-SUM(R9:S9)/2,IF($Q$2=3,10-SUM(R9:T9)/3,"Rozh!!!")) -> 8.7 | H9: =W9 -> 2 | I9: =IF($Q$3=2,10-SUM(X9:Z9)/2,IF($Q$3=3,10-SUM(X9:Z9)/3,"Rozh!!!")) -> 8.766666667 | J9: =SUM(F9:I9) -> 20.96666667 | P9: =C9 -> Adamírová Karolína | Q9: 1.5 | R9: 1.2 | S9: 1.4 | T9: 1.3 | V9: =C9 -> Adamírová Karolína | W9: 2 | X9: 1.2 | Y9: 1.3 | Z9: 1.2
A10: 13 | B10: 2 | C10: Severýnová Anna | D10: 2016 | E10: TJ Sokol Vysoké Mýto | F10: 1.5 | G10: 8.966666667 | H10: 2 | I10: 7.533333333 | J10: 20 | P10: Severýnová Anna | Q10: 1.5 | R10: 1 | S10: 1.1 | T10: 1 | V10: Severýnová Anna | W10: 2 | X10: 2.6 | Y10: 2.4 | Z10: 2.4
A11: 12 | B11: 3 | C11: Saifrtová Valerie | D11: 2016 | E11: TJ Sokol Hradec Králové | F11: 1.5 | G11: 8.466666667 | H11: 2 | I11: 8 | J11: 19.96666667 | P11: Saifrtová Valerie | Q11: 1.5 | R11: 1.5 | S11: 1.6 | T11: 1.5 | V11: Saifrtová Valerie | W11: 2 | X11: 2.1 | Y11: 2 | Z11: 1.9
A12: 6 | B12: 4 | C12: Brandejsová Anna | D12: 2016 | E12: TJ Sokol Pardubice I | F12: 1.5 | G12: 8.366666667 | H12: 2 | I12: 8.066666667 | J12: 19.93333333 | P12: Brandejsová Anna | Q12: 1.5 | R12: 1.6 | S12: 1.6 | T12: 1.7 | V12: Brandejsová Anna | W12: 2 | X12: 2 | Y12: 1.8 | Z12: 2
A13: 15 | B13: 5 | C13: Tarešová Emily | D13: 2016 | E13: TJ Sokol Vysoké Mýto | F13: 1.5 | G13: 8.7 | H13: 2 | I13: 7.466666667 | J13: 19.66666667 | P13: Tarešová Emily | Q13: 1.5 | R13: 1.3 | S13: 1.3 | T13: 1.3 | V13: Tarešová Emily | W13: 2 | X13: 2.5 | Y13: 2.6 | Z13: 2.5
A14: 19 | B14: 6 | C14: Mládková Adéla | D14: 2016 | E14: TJ Sokol Vysoké Mýto | F14: 1.5 | G14: 8.166666667 | H14: 2 | I14: 7.933333333 | J14: 19.6 | P14: Mládková Adéla | Q14: 1.5 | R14: 1.8 | S14: 1.9 | T14: 1.8 | V14: Mládková Adéla | W14: 2 | X14: 2.2 | Y14: 2 | Z14: 2
A15: 3 | B15: 7 | C15: Hotmarová Stela | D15: 2016 | E15: TJ Sokol Chrudim | F15: 1.5 | G15: 8.5 | H15: 2 | I15: 7.566666667 | J15: 19.56666667 | P15: Hotmarová Stela | Q15: 1.5 | R15: 1.5 | S15: 1.5 | T15: 1.5 | V15: Hotmarová Stela | W15: 2 | X15: 2.6 | Y15: 2.4 | Z15: 2.3
A16: 1 | B16: 8 | C16: Herzánová Lucie | D16: 2016 | E16: TJ Sokol Chrudim | F16: 1.5 | G16: 7.333333333 | H16: 2 | I16: 8.333333333 | J16: 19.16666667 | P16: Herzánová Lucie | Q16: 1.5 | R16: 2.7 | S16: 2.8 | T16: 2.5 | V16: Herzánová Lucie | W16: 2 | X16: 1.5 | Y16: 1.8 | Z16: 1.7
A17: 16 | B17: 9 | C17: Fajfrová Elen | D17: 2016 | E17: TJ Sokol Vysoké Mýto | F17: 1.5 | G17: 7.966666667 | H17: 2 | I17: 7.5 | J17: 18.96666667 | P17: Fajfrová Elen | Q17: 1.5 | R17: 1.9 | S17: 2.1 | T17: 2.1 | V17: Fajfrová Elen | W17: 2 | X17: 2.6 | Y17: 2.4 | Z17: 2.5
A18: 17 | B18: 10 | C18: Kvapilová Lucie | D18: 2016 | E18: TJ Sokol Vysoké Mýto | F18: 1.5 | G18: 7.8 | H18: 2 | I18: 7.3 | J18: 18.6 | P18: Kvapilová Lucie | Q18: 1.5 | R18: 2.3 | S18: 2.4 | T18: 1.9 | V18: Kvapilová Lucie | W18: 2 | X18: 2.8 | Y18: 2.6 | Z18: 2.7
A19: 2 | B19: 11 | C19: Zvárová Veronika | D19: 2016 | E19: TJ Sokol Chrudim | F19: 1.5 | G19: 6.8 | H19: 2 | I19: 8.233333333 | J19: 18.53333333 | P19: Zvárová Veronika | Q19: 1.5 | R19: 3.2 | S19: 3.3 | T19: 3.1 | V19: Zvárová Veronika | W19: 2 | X19: 1.8 | Y19: 1.8 | Z19: 1.7
A20: 5 | B20: 12 | C20: Kinclová Elen | D20: 2016 | E20: TJ Spartak Vrchlabí | F20: 1.5 | G20: 7.9 | H20: 2 | I20: 7.066666667 | J20: 18.46666667 | P20: Kinclová Elen | Q20: 1.5 | R20: 2.1 | S20: 2.1 | T20: 2.1 | V20: Kinclová Elen | W20: 2 | X20: 2.9 | Y20: 3 | Z20: 2.9
A21: 18 | B21: 13 | C21: Marková Josefína | D21: 2016 | E21: TJ Sokol Vysoké Mýto | F21: 1.5 | G21: 7.733333333 | H21: 1.5 | I21: 6.3 | J21: 17.03333333 | P21: Marková Josefína | Q21: 1.5 | R21: 2.3 | S21: 2.5 | T21: 2 | V21: Marková Josefína | W21: 1.5 | X21: 3.4 | Y21: 3.9 | Z21: 3.8
A22: 4 | B22: 14 | C22: Zelinková Alice | D22: 2016 | E22: TJ Spartak Vrchlabí | F22: 1.5 | G22: 6.5 | H22: 2 | I22: 6.466666667 | J22: 16.46666667 | P22: Zelinková Alice | Q22: 1.5 | R22: 3.4 | S22: 3.5 | T22: 3.6 | V22: Zelinková Alice | W22: 2 | X22: 3.6 | Y22: 3.3 | Z22: 3.7
A23: 11 | B23: 15 | C23: Ježková Leontýna | D23: 2016 | E23: TJ Sokol Hradec Králové | F23: 1.5 | G23: 7.233333333 | H23: 1.5 | I23: 5.4 | J23: 15.63333333 | P23: Ježková Leontýna | Q23: 1.5 | R23: 2.5 | S23: 2.7 | T23: 3.1 | V23: Ježková Leontýna | W23: 1.5 | X23: 4.5 | Y23: 4.8 | Z23: 4.5
A24: 9 | B24: 16 | C24: Alešová Miriam | D24: 2016 | E24: TJ Sokol Hradec Králové | F24: 0.5 | G24: 5.4 | H24: 1.5 | I24: 5.9 | J24: 13.3 | P24: Alešová Miriam | Q24: 0.5 | R24: 4.5 | S24: 4.5 | T24: 4.8 | V24: Alešová Miriam | W24: 1.5 | X24: 4.5 | Y24: 3.9 | Z24: 3.9
C29: Závod je pořádán za podpory Statutárního města Pardubice

Sheet 2017
B1: 48. ročník Předvánočního závodu žákyň ve sportovní gymnastice města Pardubic | P1: Počet rozhod. (2,3): | Q1: Počet
B2: ročník 2017 | P2: Kladina | Q2: 3
B3: 10. prosince 2022 | P3: Akrobacie | Q3: 3
A4: Pořadatel: T.J. Sokol Pardubice I
P5: Řadit podle | Q5: Výsled. | R5: Start.č. | S5: Jednoty
P6: Klávesová zkratka | Q6: Ctrl+q | R6: Ctrl+w | S6: Ctrl+e
B7: Pořadí | C7: Jméno | D7: Ročník | E7: Oddíl | F7: Kladina | H7: Akrobacie | J7: Celkem
A8: St.č. | F8: A | G8: B | H8: A | I8: B | L8: Sled | M8: Nář. | Q8: Panel | R8: Klad. 1 | S8: Klad. 2 | T8: Klad. 3 | W8: Panel | X8: Akr. 1 | Y8: Akr. 2 | Z8: Akr. 3
A9: 5 | B9: =_xlfn.RANK.EQ(J9,$J$9:$J$16) -> 1 | C9: Tauchmanová Klára | D9: 2017 | E9: TJ Sokol Vysoké Mýto | F9: =Q9 -> 1.5 | G9: =IF($Q$2=2,10-SUM(R9:S9)/2,IF($Q$2=3,10-SUM(R9:T9)/3,"Rozh!!!")) -> 8.8 | H9: =W9 -> 2 | I9: =IF($Q$3=2,10-SUM(X9:Z9)/2,IF($Q$3=3,10-SUM(X9:Z9)/3,"Rozh!!!")) -> 8.433333333 | J9: =SUM(F9:I9) -> 20.73333333 | O9: 5 | P9: =C9 -> Tauchmanová Klára | Q9: 1.5 | R9: 1.2 | S9: 1.1 | T9: 1.3 | U9: 5 | V9: =C9 -> Tauchmanová Klára | W9: 2 | X9: 1.5 | Y9: 1.8 | Z9: 1.4
A10: 1 | B10: 2 | C10: Svobodová Viktorie | D10: 2017 | E10: TJ Sokol Hradec Králové | F10: 1.5 | G10: 7.866666667 | H10: 2 | I10: 7.4 | J10: 18.76666667 | O10: 1 | P10: Svobodová Viktorie | Q10: 1.5 | R10: 2 | S10: 2.1 | T10: 2.3 | U10: 1 | V10: Svobodová Viktorie | W10: 2 | X10: 3 | Y10: 2.4 | Z10: 2.4
A11: 8 | B11: 3 | C11: Fufalová Alžběta | D11: 2017 | E11: TJ Sokol Pardubice I | F11: 1.5 | G11: 8.333333333 | H11: 2 | I11: 6.9 | J11: 18.73333333 | O11: 8 | P11: Fufalová Alžběta | Q11: 1.5 | R11: 1.7 | S11: 1.9 | T11: 1.4 | U11: 8 | V11: Fufalová Alžběta | W11: 2 | X11: 3.1 | Y11: 3.3 | Z11: 2.9
A12: 4 | B12: 4 | C12: Dočekalová Anna | D12: 2017 | E12: TJ Sokol Hradec Králové | F12: 1.5 | G12: 6.8 | H12: 2 | I12: 6.6 | J12: 16.9 | O12: 4 | P12: Dočekalová Anna | Q12: 1.5 | R12: 3.1 | S12: 3.4 | T12: 3.1 | U12: 4 | V12: Dočekalová Anna | W12: 2 | X12: 3.8 | Y12: 3.2 | Z12: 3.2
A13: 7 | B13: 5 | C13: Koldovská Nela | D13: 2018 | E13: TJ Spartak Vrchlabí | F13: 1.5 | G13: 6.833333333 | H13: 2 | I13: 6.2 | J13: 16.53333333 | O13: 7 | P13: Koldovská Nela | Q13: 1.5 | R13: 3.1 | S13: 3 | T13: 3.4 | U13: 7 | V13: Koldovská Nela | W13: 2 | X13: 3.8 | Y13: 3.8 | Z13: 3.8
A14: 3 | B14: 6 | C14: Říhová Barbora | D14: 2017 | E14: TJ Sokol Vysoké Mýto | F14: 1.5 | G14: 6.266666667 | H14: 1.5 | I14: 6.233333333 | J14: 15.5 | O14: 3 | P14: Říhová Barbora | Q14: 1.5 | R14: 3.8 | S14: 3.8 | T14: 3.6 | U14: 3 | V14: Říhová Barbora | W14: 1.5 | X14: 3.9 | Y14: 3.7 | Z14: 3.7
A15: 6 | B15: 6 | C15: Koudelková Vanesa | D15: 2017 | E15: TJ Spartak Vrchlabí | F15: 1.5 | G15: 5.4 | H15: 2 | I15: 6.6 | J15: 15.5 | O15: 6 | P15: Koudelková Vanesa | Q15: 1.5 | R15: 4.4 | S15: 4.5 | T15: 4.9 | U15: 6 | V15: Koudelková Vanesa | W15: 2 | X15: 3.2 | Y15: 3.6 | Z15: 3.4
A16: 2 | B16: =_xlfn.RANK.EQ(J16,$J$9:$J$16) -> 8 | C16: Lizrová Rozárie | D16: 2017 | E16: TJ Spartak Vrchlabí | F16: 1.5 | G16: 4.4 | H16: 2 | I16: 6.666666667 | J16: 14.56666667 | O16: 2 | P16: Lizrová Rozárie | Q16: 1.5 | R16: 5.5 | S16: 5.6 | T16: 5.7 | U16: 2 | V16: Lizrová Rozárie | W16: 2 | X16: 3.5 | Y16: 3.3 | Z16: 3.2
C21: Závod je pořádán za podpory Statutárního města Pardubice | V21: =C21 -> Závod je pořádán za podpory Statutárního města Pardubice
